Cogmind - Beta 13 @@@ ROGUE MODE // 2024.06.20 @ 17:32:49 Player: ovsyanka Result: Destroyed by D-53 Grenadier with Mini Grenade Launcher Performance ------------- Evolutions (0) 0 Regions Visited (2) 400 Robots Destroyed (18) 90 Value Destroyed (349) 349 Prototype IDs (0) 0 Alien Tech Used (0) 0 Bonus (0) 0 TOTAL SCORE: 839 Bonus ------- None Cogmind --------- Core Integrity 0/250 Matter 262/300 Energy 100/100 System Corruption 0% Temperature Cool (0) Movement Core (750) Ox14 Location -10/Mines Parts ------- > --- POWER (1) -------- (None) > --- PROPULSION (2) --- (None) > --- UTILITY (2) ------ High-capacity Storage Unit Seismic Detector > --- WEAPON (2) ------- Improved Light Cannon > --- INVENTORY (20) --- Light Nuclear Core Light Nuclear Core Light Nuclear Core Medium Storage Unit Large Storage Unit Medium Matter Pod (100) Structural Scanner Improved Terrain Scanner Terrain Scan Processor Seismic Detector ECM Suite Assault Rifle Grenade Launcher Grenade Launcher Hammer Maul Peak State ------------ > --- POWER ------------ Ion Engine > --- PROPULSION ------- Light Treads Light Treads > --- UTILITY ---------- Large Storage Unit Seismic Detector > --- WEAPON ----------- Improved Light Cannon Improved Light Cannon > --- INVENTORY -------- Light Nuclear Core Light Nuclear Core Medium Matter Pod Structural Scanner Improved Terrain Scanner Terrain Scan Processor Seismic Detector ECM Suite Assault Rifle Grenade Launcher Hammer Maul [Rating: 11] Favorites ----------- Power Ion Engine Engine Ion Engine Propulsion Light Treads Treads Light Treads Utility Seismic Detector Device Seismic Detector Storage Small Storage Unit Weapon Improved Light Cannon Ballistic Gun Assault Rifle Ballistic Cannon Improved Light Cannon Launcher Grenade Launcher Special Weapon Plasma Cutter Build | -11 -10 -10 ------- Run | Yrd Mat Min Slots Evolved . | . . . Power . | . . . Propulsion . | . . . Utility . | . . . Weapon . | . . . Parts Attached 23 | 10 11 2 Power 2 | 1 1 . Engine 2 | 1 1 . Core . | . . . Reactor . | . . . Propulsion 2 | 2 . . Treads 2 | 2 . . Leg . | . . . Wheel . | . . . Hover . | . . . Flight . | . . . Utility 7 | 4 3 . Device 3 | 2 1 . Storage 4 | 2 2 . Processor . | . . . Hackware . | . . . Protection . | . . . Artifact . | . . . Weapon 12 | 3 7 2 Energy Gun . | . . . Energy Cannon . | . . . Ballistic Gun 6 | 3 3 . Ballistic Cannon 3 | . 2 1 Launcher 1 | . . 1 Special Weapon 2 | . 2 . Impact Weapon . | . . . Slashing Weapon . | . . . Piercing Weapon . | . . . Special Melee Weapon . | . . . Unidentified Prototypes . | . . . Parts Lost 4 | . . 4 Power 1 | . . 1 Propulsion 2 | . . 2 Utility . | . . . Weapon 1 | . . 1 Highest Loss Streak 4 | . . 4 To Critical Strikes . | . . . Average Slot Usage (%) 99 | . 99 89 Engine 13 | . 14 10 Treads 27 | . 28 21 Device 14 | . 14 14 Storage 14 | . 14 14 Ballistic Gun 14 | . 14 . Ballistic Cannon 13 | . 12 28 Naked Turns . | . . . Heaviest Build 54 | 18 54 54 Greatest Support 40 | 40 40 40 Greatest Overweight (x) 2 | . 1 2 Average Overweight (x) . | . . 1 Largest Inventory Capacity 20 | 8 20 20 Average Capacity 11 | 7 11 20 Most Carried 16 | 7 16 16 Average Carried 9 | 3 9 16 Final Capacity 20 | 8 20 20 Final Carried 16 | 7 16 16 Class Distribution -------------------- 100% | Mutant Dominant Class ---------------- Mutant | -10/Materials Mutant | -10/Mines Resources | -11 -10 -10 ----------- Run | Yrd Mat Min Matter Collected 701 | 383 318 . Remotely 30 | 30 . . Salvage Created 633 | 142 491 . Parts 42 | 12 30 . Haulers Intercepted . | . . . Recyclers Shooed 1 | . 1 . Parts Field Recycled . | . . . Retrieved Matter . | . . . Parts Self-Destructed . | . . . Prevented . | . . . Kills | -11 -10 -10 ------- Run | Yrd Mat Min Combat Hostiles Destroyed 7 | . 7 . Guns 6 | . 6 . Cannons 1 | . 1 . Classes Destroyed 6 | 3 3 . Worker 3 | 2 1 . Builder 1 | . 1 . Tunneler 2 | 2 . . Recycler 3 | 1 2 . Operator 2 | . 2 . Grunt 7 | . 7 . Best Kill Streak 4 | 3 4 . Combat Bots Only 4 | . 4 . Max Kills in Single Turn 1 | 1 1 . Gunslinging . | . . . Exploded . | . . . Melee . | . . . Uniques/NPCs Destroyed . | . . . Combat | -11 -10 -10 -------- Run | Yrd Mat Min Hostile Shots Fired 58 | . 44 14 Missed 10 | . 9 1 Damage Taken 1125 | . 476 649 Core 254 | . 90 164 Absorbed by Shields . | . . . Core Remaining (%) 100 | 100 . . Volleys Fired 57 | 17 37 3 Largest 2 | 2 2 2 Hottest 100 | 40 100 78 Shots Fired 109 | 34 70 5 Gun 94 | 34 60 . Cannon 11 | . 6 5 Launcher . | . . . Special 4 | . 4 . Kinetic 105 | 34 66 5 Thermal 4 | . 4 . Explosive . | . . . Electromagnetic . | . . . Robot Hit Streak 16 | 8 16 2 Robot Miss Streak 4 | 4 4 1 Penetration Max . | . . . Secondary Targets . | . . . Shots Hit Robots 69 | 20 46 3 Core Hits 34 | 7 26 1 Critical Kills . | . . . Critical Parts Destroyed . | . . . Critical Strikes . | . . . Melee Attacks . | . . . Impact . | . . . Slashing . | . . . Piercing . | . . . Sneak Attacks . | . . . Combat Hostiles . | . . . Follow-up Attacks . | . . . Damage Inflicted 834 | 219 552 63 Guns 667 | 219 448 . Cannons 167 | . 104 63 Explosions . | . . . Melee . | . . . Ramming . | . . . Kinetic 834 | 219 552 63 Thermal . | . . . Explosive . | . . . Electromagnetic . | . . . Impact . | . . . Slashing . | . . . Piercing . | . . . Highest Corruption . | . . . Average Corruption . | . . . Corruption Purged . | . . . Corruption Blocked . | . . . Overload Shots . | . . . Overflow Damage 11 | . 11 . Projectiles 11 | . 11 . Explosions . | . . . Melee . | . . . Knockbacks 1 | . 1 . Impact . | . . . Kinetic 1 | . 1 . Secondary . | . . . Self-Inflicted Damage . | . . . Shots . | . . . Rammed 1 | . 1 . Targets Rammed 1 | . 1 . Kicked . | . . . Crushed . | . . . Highest Temperature 63 | . 63 6 Average Temperature 17 | . 20 3 Received Heat Transfer 291 | . 267 24 Siege Activations . | . . . Robots Corrupted . | . . . Combat Hostiles . | . . . Parts Fried . | . . . Impact Corruptions . | . . . Robots Melted . | . . . Combat Hostiles . | . . . Parts Melted . | . . . Heat Transferred . | . . . Parts Sabotaged . | . . . Parts Stolen . | . . . Parts Stripped . | . . . Power Chain Reactions . | . . . Alert | -11 -10 -10 ------- Run | Yrd Mat Min Peak Influence 145 | 25 145 . Initial 16 | . 16 . Average 50 | 10 55 . Maximum Alert Level . | . . . Low Security (%) 100 | 100 100 100 Level 1 . | . . . Level 2 . | . . . Level 3 . | . . . Level 4 . | . . . Level 5 . | . . . High Security . | . . . Max Security . | . . . Squads Dispatched 2 | . 2 . Investigation . | . . . Extermination . | . . . Reinforcement 2 | . 2 . Assault . | . . . Garrison . | . . . Intercept . | . . . Searches Triggered . | . . . Construction Impeded . | . . . Haulers Reinforced . | . . . Active Scanning Responses . | . . . Cargo Convoy Interrupts . | . . . Stealth | -11 -10 -10 --------- Run | Yrd Mat Min Distress Signals 3 | . 3 . Communications Jammed . | . . . Distress Signals . | . . . Times Spotted 21 | . 19 2 Peak Tracking Total 5 | . 5 2 Tactical Retreats 2 | . 2 . Traps | -11 -10 -10 ------- Run | Yrd Mat Min Traps Triggered . | . . . Indirectly . | . . . Trap Hack Attempts . | . . . Triggered . | . . . Disarmed . | . . . Reprogrammed . | . . . Reused . | . . . Traps Extracted . | . . . Installed . | . . . Triggered . | . . . Machines | -11 -10 -10 ---------- Run | Yrd Mat Min Machines Disabled . | . . . Max in Single Turn . | . . . Machines Repaired . | . . . Machines Dismantled . | . . . Machines Sabotaged . | . . . Overloaded Fab Kills . | . . . Hacking | -11 -10 -10 --------- Run | Yrd Mat Min Machines Accessed 2 | . 2 . Terminals 2 | . 2 . Fabricators . | . . . Repair Stations . | . . . Recycling Units . | . . . Scanalyzers . | . . . Garrison Access . | . . . Total Hacks 4 | . 4 . Successful 1 | . 1 . Failed 2 | . 2 . Catastrophic . | . . . Database Lockouts 1 | . 1 . Manual 5 | . 5 . Terminals 4 | . 4 . Fabricators . | . . . Repair Stations . | . . . Recycling Units . | . . . Scanalyzers . | . . . Garrison Access . | . . . Terminal Hacks 1 | . 1 . Robot Analysis 1 | . 1 . Fabricator Hacks . | . . . Repair Station Hacks . | . . . Recycling Unit Hacks . | . . . Scanalyzer . | . . . Garrison Access Hacks . | . . . Unauthorized Hacks . | . . . Terminals . | . . . Fabricators . | . . . Repair Stations . | . . . Recycling Units . | . . . Scanalyzers . | . . . Garrison Access . | . . . Data Cores Recovered . | . . . Used . | . . . Hacking Detections 1 | . 1 . Full Trace Events . | . . . Feedback Events . | . . . Feedback Blocked . | . . . Robot Schematics Acquired . | . . . Robots Built . | . . . Authchips . | . . . Time . | . . . Total Robot Build Rating . | . . . Part Schematics Acquired . | . . . Parts Built . | . . . Authchips . | . . . Time . | . . . Total Part Build Rating . | . . . Parts Repaired . | . . . Time . | . . . Parts Recycled . | . . . Recycled Matter . | . . . Retrieved Matter . | . . . Retrieved Components . | . . . Parts Scanalyzed . | . . . Part Schematics Acquired . | . . . Parts Damaged . | . . . Bothacking | -11 -10 -10 ------------ Run | Yrd Mat Min Used RIF Installer . | . . . Robots Hacked . | . . . Non-combat . | . . . Combat . | . . . Robot Hacks Applied . | . . . Relay Couplers Released . | . . . Fabnet Peak Effective % . | . . . Robots Rewired . | . . . Allies Hacked . | . . . Hacks Repelled . | . . . Allies | -11 -10 -10 -------- Run | Yrd Mat Min Total Allies . | . . . Largest Group . | . . . Highest-Rated Group . | . . . Highest-Rated Ally . | . . . Total Orders . | . . . Ally Attacks . | . . . Total Damage . | . . . Kills . | . . . Allies Corrupted . | . . . Allies Melted . | . . . Intel | -11 -10 -10 ------- Run | Yrd Mat Min Robot Analysis Total 1 | . 1 . Derelict Logs Recovered . | . . . Drone Launches . | . . . Drone Recoveries . | . . . Exploration | -11 -10 -10 ------------- Run | Yrd Mat Min Turns Passed 1513 | 147 1329 37 Spaces Moved 719 | 52 659 8 Core 3 | 3 . . Treads 716 | 49 659 8 Legs . | . . . Wheels . | . . . Hover . | . . . Flight . | . . . Fastest Speed 50 | 50 160 240 Average Speed 172 | 153 172 250 Slowest Speed 320 | 160 240 320 Overloaded Moves . | . . . Propulsion Burnouts . | . . . Robots Hopped . | . . . Cave-ins Triggered . | . . . Exploration Rate (%) 31 | 6 83 5 Regions Visited 2 Branch Regions 1 Pre-discovered Areas . | . . . Known Exits Taken . | . . . Unknown Exits Taken 2 | 1 1 . Scrap Searched . | . . . Spaces Dug 2 | . 2 . Terrain Destroyed 2 | . 2 . Melee . | . . . Projectile 2 | . 2 . AOE . | . . . Terrain Rammed . | . . . Walls Destroyed . | . . . Machines Disabled . | . . . Actions | -11 -10 -10 --------- Run | Yrd Mat Min Total 885 | 84 782 19 Wait 57 | . 51 6 Move 717 | 51 658 8 Hop . | . . . Pick Up 18 | 5 13 . Fast Attach 10 | 8 2 . Attach . | . . . Detach 1 | 1 . . Swap 13 | 2 9 2 Drop 11 | . 11 . Fire 57 | 17 37 3 Melee . | . . . Ram . | . . . Kick . | . . . Crush 1 | . 1 . Escape Stasis . | . . . Rewire . | . . . Trap . | . . . Miscellaneous . | . . . Route ------- -11/Scrapyard -10/Materials (discovered 4 exits: [*Mat x2] / [*Min x2]) -10/Mines History --------- Turn | Location | Event 4 | -11/Scrapyard | Discovered new exit (range 15) 148 | -11/Scrapyard | Entered Materials 351 | -10/Materials | Build established: Mutant 360 | -10/Materials | Discovered new exit (range 15) 379 | -10/Materials | Central database locked down 723 | -10/Materials | Discovered new exit (range 16) 900 | -10/Materials | Derelicts attacked the area 1091 | -10/Materials | Discovered new exit (range 10) 1154 | -10/Materials | Discovered new exit (range 13) 1477 | -10/Materials | Entered Mines 1478 | -10/Mines | Assembled infested the area 1481 | -10/Mines | Met a Derelict bent on vengeance 1506 | -10/Mines | Core integrity fell below 50% 1513 | -10/Mines | Core integrity fell below 20% 1514 | -10/Mines | Destroyed by D-53 Grenadier with Mini Grenade Launcher Last Messages --------------- 01342_ Acquired 16 matter. LOCATION=UNKNOWN GOAL=ESCAPE Something is scanning the area. 01478_ ALERT: Infestation in the mines, dispatching Demolisher response squad. 01478_ K-01 Serf collects debris. 01490_ K-01 Serf cleans the Plasma Injector. 01501_ K-01 Serf collects debris. 01501_ C-30 ARC bursts open, deploying its payload. 01501_ D-53 Grenadier unfolds itself. 01501_ Plasma Injector explodes. 01501_ K-01 Serf collects debris. 01503_ Ion Engine destroyed. 01503_ Lgt. Treads destroyed. 01504_ K-01 Serf collects debris. 01505_ Lgt. Treads destroyed. 01511_ The unstable cave ceiling collapses. 01512_ Imp. Light Cannon destroyed. 01513_ The unstable cave ceiling collapses. Map ----- +----------------------------------------------------+ | ??????????????????????????????????????????????? | | ??????????????????????????????????????????????? | | ??????????????????????????????????????????????? | | ??????????????????????????????????????????????? | | ??????????????????????????????????????????????? | | ??????????????????????????????????????????????? | | ??????????????????????????????????????????????? | | ??????????????????????????????????????????????? | | ??????????????????????????????????????????????? | | ??????????????????????????????????????????????? | | ??????????????????????????????????????????????? | | ??????????????????????????????????????????????? | | ??????????????????????????????????????????????? | | ?????????????????????????##########???????????? | | ?????????????????????????# #???????????? | | ?????????????????????????# #???????????? | | ????????????????????????## #???????????? | | ???????????????????????## #???????????? | | ???????????????????????# #???????????? | | ??????????????????????## #???????????? | | ??????????????????????# #???????????? | | ?????????????????????## #???????????? | | ????????????????????## #???????????? | | ????????????????????# #???????????? | | ????????????????????# #???????????? | | ????????????????????# @ #???????????? | | ????????????????????# ####???????????? | | ????????????????????# ##??????????????? | | ????????????????????## ##???????????????? | | ?????????????????????## dd ???????????????? | | ??????????????????????### %% ??????????????? | | ????????????????????????#### ### ?????????????? | | ???????????????????????????? #??? ????????????? | | ???????????????????????????? #???? ???????????? | | ????????????????????????????##????? ??????????? | | ???????????????????????????????????? ?????????? | | ??????????????????????????????????????????????? | | ??????????????????????????????????????????????? | | ??????????????????????????????????????????????? | | ??????????????????????????????????????????????? | | ??????????????????????????????????????????????? | | ??????????????????????????????????????????????? | | ??????????????????????????????????????????????? | | ??????????????????????????????????????????????? | | ??????????????????????????????????????????????? | | ??????????????????????????????????????????????? | | ??????????????????????????????????????????????? | | ??????????????????????????????????????????????? | | ??????????????????????????????????????????????? | | ??????????????????????????????????????????????? | +----------------------------------------------------+ Best States ------------- Heat Dissipation 25 Energy Generation 10 Energy Capacity 250 Matter Stores 300 Matter Capacity 300 Sight Range 16 Terrain Scan Density 10 Evasion (%) 40 Recoil Reduction 2 Item Schematics ----------------- None Robot Schematics ------------------ None Fabricated ------------ Nothing Alien Tech Used ----------------- None Achievements -------------- None Challenges ------------ None Game ------ Seed GlidesysConstructSword Manual? 0 Play Time 00:08:21 Cumulative 47.1 hours Start 2024.06.20 @ 17:25:08 End 2024.06.20 @ 17:32:49 Sessions 1 Manual Loads 0 Difficulty Rogue Special Mode None Game No. 31 Rogue 18 Adventurer 13 Explorer 0 Win Type - Total 0 Types 0/0/0/0/0/0/0/0/0 Lore% 23 Gallery% 40 Achievement% 32 Wizard Run 0 Options --------- Layout 2 ASCII 0 Keyboard 0 Movement Numpad Keybinds 0 Fullscreen 2 Font 16/Swanston Map View 55x47 Zoom Use 0% Tactical HUD 1 Map Filters NONE Filters NONE Steam 0 RUN: 1af1ba93-68e5-4f6e-aa40-9a24bf7aadd0